fUST/lending_fUST_20240503
["ID","MTS","AMOUNT","RATE_DAILY","PERIOD"]
[325360163,1714750258452,-500.0,0.00028937,2]
[325360165,1714750258462,-500.0,0.00028937,2]
[325360167,1714750258471,-500.0,0.00028937,2]
[325360169,1714750258480,-500.0,0.00028937,2]
[325360171,1714750258491,-516.0,0.00028937,2]
[325360173,1714750258501,-606.44,0.00028937,2]
[325360175,1714750258511,-606.21,0.00028937,2]
[325360177,1714750258520,-500.0,0.00028937,2]
[325360179,1714750258530,-500.0,0.00028937,2]
[325360181,1714750258540,-500.0,0.00028937,2]
[325360183,1714750258550,-500.0,0.00028937,2]
[325360185,1714750258560,-1079.1,0.00028972,5]
[325360187,1714750258570,-309.28863614,0.00029,2]
[325360189,1714750258580,-844.06899928,0.00029,2]
[325360191,1714750258590,-552.44,0.00029008,2]
[325360193,1714750258599,-500.0,0.00029008,2]
[325360195,1714750258609,-150.5,0.00029021,35]
[325360197,1714750258618,-150.5,0.00029031,35]
[325360199,1714750258627,-500.0,0.00029041,2]
[325360201,1714750258638,-500.0,0.00029041,2]
[325360203,1714750258647,-500.0,0.00029041,2]
[325360205,1714750258656,-1000.0,0.00029041,2]
[325360207,1714750258666,-500.0,0.00029041,2]
[325360209,1714750258675,-500.0,0.00029041,2]
[325360211,1714750258684,-500.0,0.00029041,2]
[325360212,1714750258694,-500.0,0.00029041,2]
[325360214,1714750258703,-500.0,0.00029041,2]
[325360216,1714750258712,-500.0,0.00029041,2]
[325360218,1714750258722,-500.0,0.00029041,2]
[325360220,1714750258732,-1327.14,0.00029188,2]
[325360222,1714750258744,-9275.45,0.00029188,2]
[325360224,1714750258754,-785.37,0.00029188,2]
[325360226,1714750258763,-500.0,0.00029188,2]
[325360228,1714750258773,-10513.94,0.00029188,2]
[325360230,1714750258782,-976.39,0.00029188,2]
[325360232,1714750258792,-1022.09,0.00029188,2]
[325360234,1714750258801,-2235.82,0.00029188,2]
[325360236,1714750258811,-562.24,0.00029188,2]
[325360238,1714750258820,-601.06,0.00029188,2]
[325360240,1714750258830,-797.94,0.00029188,2]
[325360242,1714750258840,-500.0,0.00029188,2]
[325360244,1714750258850,-6216.02,0.00029188,2]
[325360246,1714750258859,-500.0,0.00029188,2]
[325360248,1714750258869,-500.0,0.0002919,2]
[325360250,1714750258878,-510.42,0.0002919,2]
[325360252,1714750258888,-500.0,0.0002919,2]
[325360254,1714750258897,-500.0,0.0002919,2]
[325360256,1714750258907,-500.0,0.0002919,2]
[325360258,1714750258916,-690.26,0.0002919,2]
[325360260,1714750258926,-500.0,0.0002919,2]
[325360262,1714750258936,-512.63,0.0002919,2]
[325360263,1714750258945,-500.0,0.0002919,2]
[325360265,1714750258955,-500.0,0.0002919,2]
[325360267,1714750258965,-2997.35,0.0002919,2]
[325360269,1714750258975,-1578.22,0.0002919,2]
[325360271,1714750258984,-721.96,0.0002919,2]
[325360273,1714750258994,-500.0,0.0002919,2]
[325360275,1714750259004,-1485.57,0.0002919,2]
[325360277,1714750259014,-4953.28,0.0002919,2]
[325360279,1714750259024,-1549.55,0.0002919,2]
[325360281,1714750259034,-3052.27860139,0.0002919,2]
[325360283,1714750259047,-3319.25139861,0.0002919,2]
[325360285,1714750259056,-2101.63,0.0002919,2]
[325360287,1714750259066,-500.0,0.0002919,2]
[325360289,1714750259075,-215.51860139,0.0002919,2]
[325360324,1714750259569,-500.0,0.00027292,2]
[325360325,1714750259578,-500.0,0.00027566,2]
[325360326,1714750259588,-500.0,0.0002784,2]
[325360327,1714750259597,-500.0,0.00028114,2]
[325360328,1714750259607,-500.0,0.00028388,2]
[325360329,1714750259616,-500.0,0.00028662,2]
[325360330,1714750259626,-500.0,0.00028936,2]
[325360331,1714750259635,-284.48139861,0.0002919,2]
[325360332,1714750259646,-500.0,0.0002919,2]
[325360333,1714750259655,-7429.7,0.0002919,2]
[325360334,1714750259665,-2456.55,0.0002919,2]
[325360335,1714750259675,-38.84851039,0.0002919,2]
[325360350,1714750259820,-500.0,0.00026996,2]
[325360352,1714750259829,-500.0,0.00026998,2]
[325360354,1714750259839,-500.0,0.00026998,2]
[325360356,1714750259849,-500.0,0.00027293,2]
[325360358,1714750259859,-5076.27,0.00027537,3]
[325360370,1714750259951,-500.0,0.00027567,2]
[325360372,1714750259972,-461.15148961,0.0002919,2]
[325360374,1714750259982,-633.36,0.0002919,2]
[325360376,1714750259991,-500.0,0.0002919,2]
[325360378,1714750260000,-1023.54,0.0002919,2]
[325360380,1714750260010,-1355.33,0.0002919,2]
[325360382,1714750260021,-1128.19,0.0002919,2]
[325360384,1714750260031,-1213.87,0.0002919,2]
[325360386,1714750260041,-500.0,0.0002919,2]
[325360388,1714750260051,-500.0,0.0002919,2]
[325360390,1714750260060,-862.53,0.00029191,2]
[325360392,1714750260069,-500.0,0.00029191,2]
[325360394,1714750260079,-500.0,0.00029191,2]
[325360396,1714750260089,-837.87,0.00029191,2]
[325360397,1714750260099,-500.0,0.00029191,2]
[325360398,1714750260108,-500.0,0.00029191,2]
[325360399,1714750260118,-500.0,0.00029191,2]
[325360400,1714750260128,-395.86972672,0.00029191,2]
[325360401,1714750260140,-104.13027328,0.00029191,2]
[325360402,1714750260149,-500.0,0.00029191,2]
[325360403,1714750260159,-1489.61,0.00029191,2]
[325360404,1714750260168,-2633.47,0.00029191,2]
[325360405,1714750260179,-830.4,0.00029191,2]
[325360406,1714750260188,-500.0,0.00029191,2]
[325360407,1714750260199,-500.0,0.00029191,2]
[325360408,1714750260208,-1598.34,0.00029191,2]
[325360409,1714750260222,-500.0,0.00029191,2]
[325360410,1714750260232,-500.0,0.00029191,2]
[325360411,1714750260242,-500.0,0.00029191,2]
[325360412,1714750260254,-1060.1,0.00029191,2]
[325360413,1714750260263,-523.46,0.00029191,2]
[325360414,1714750260273,-500.0,0.00029191,2]
[325360415,1714750260284,-467.44976014,0.00029191,2]
[325360416,1714750260297,-1068.09,0.00029191,2]
[325360417,1714750260308,-559.43,0.00029191,2]
[325360418,1714750260318,-326.28538383,0.00029191,2]
[325360419,1714750260328,-513.59,0.00029191,2]
[325360420,1714750260337,-500.0,0.00029191,2]
[325360421,1714750260347,-500.0,0.00029191,2]
[325360422,1714750260356,-632.98,0.00029191,2]
[325360423,1714750260367,-637.02,0.00029191,2]
[325360424,1714750260377,-500.0,0.00029191,2]
[325360425,1714750260387,-1615.03,0.00029191,2]
[325360426,1714750260397,-1312.06,0.00029191,2]
[325360427,1714750260407,-500.0,0.00029191,2]
[325360428,1714750260416,-1845.44,0.00029191,2]
[325360429,1714750260425,-500.0,0.00029191,2]
[325360430,1714750260436,-640.57655583,0.00029191,2]
[325360431,1714750260446,-751.0,0.00029191,2]
[325360432,1714750260456,-500.0,0.00029191,2]
[325360433,1714750260466,-1150.87,0.00029191,2]
[325360434,1714750260475,-664.82,0.00029191,2]
[325360435,1714750260485,-1800.91,0.00029191,2]
[325360436,1714750260497,-500.0,0.00029191,2]
[325360437,1714750260507,-2580.51,0.00029191,2]
[325360438,1714750260517,-500.0,0.00029191,2]
[325360439,1714750260527,-504.81803042,0.00029191,2]
[325360440,1714750260536,-706.9,0.00029191,2]
[325360441,1714750260546,-500.0,0.00029191,2]
[325360442,1714750260555,-500.0,0.00029191,2]
[325360443,1714750260566,-3537.83,0.00029191,2]
[325360444,1714750260576,-3279.51,0.00029191,2]
[325360445,1714750260586,-674.24,0.00029191,2]
[325360446,1714750260595,-500.0,0.00029191,2]
[325360447,1714750260604,-500.0,0.00029191,2]
[325360448,1714750260614,-519.22,0.00029191,2]
[325360449,1714750260623,-1543.8,0.00029191,2]
[325360451,1714750260633,-500.0,0.00029191,2]
[325360453,1714750260642,-500.0,0.00029191,2]
[325360455,1714750260652,-1504.09,0.00029191,2]
[325360457,1714750260661,-541.65358925,0.00029191,2]
[325360458,1714750260671,-576.71,0.00029191,2]
[325360459,1714750260680,-500.0,0.00029191,2]
[325360460,1714750260690,-500.0,0.00029191,2]
[325360461,1714750260700,-500.0,0.00029191,2]
[325360462,1714750260710,-1175.46,0.00029191,2]
[325360463,1714750260721,-590.04,0.00029191,2]
[325360464,1714750260730,-1444.11,0.00029191,2]
[325360465,1714750260743,-500.0,0.00029191,2]
[325360466,1714750260753,-758.49,0.00029191,2]
[325360467,1714750260763,-500.0,0.00029191,2]
[325360468,1714750260773,-500.0,0.00029191,2]
[325360469,1714750260783,-3880.25,0.00029191,2]
[325360470,1714750260793,-537.87,0.00029191,2]
[325360471,1714750260802,-500.0,0.00029191,2]
[325360472,1714750260812,-500.0,0.00029191,2]
[325360473,1714750260822,-500.0,0.00029191,2]
[325360474,1714750260832,-500.58,0.00029191,2]
[325360475,1714750260842,-5701.04,0.0002921,2]
[325360476,1714750260851,-7031.28,0.0002921,2]
[325360477,1714750260861,-500.0,0.0002921,2]
[325360478,1714750260871,-970.68,0.0002921,2]
[325360479,1714750260880,-500.0,0.0002921,2]
[325360480,1714750260890,-500.0,0.0002921,2]
[325360481,1714750260899,-1931.76,0.0002921,2]
[325360482,1714750260909,-42737.23,0.0002921,2]
[325360483,1714750260919,-1943.44,0.0002921,2]
[325360484,1714750260929,-341.71936301,0.0002921,2]
[325360485,1714750260939,-11480.03,0.0002921,2]
[325360486,1714750260948,-500.0,0.0002921,2]
[325360487,1714750260957,-500.0,0.00029211,2]
[325360488,1714750260967,-500.0,0.00029211,2]
[325360489,1714750260976,-509.55,0.00029211,2]
[325360490,1714750260986,-500.0,0.00029211,2]
[325360491,1714750260997,-1029.88,0.00029211,2]
[325360492,1714750261006,-500.0,0.00029211,2]
[325360493,1714750261015,-500.0,0.00029211,2]
[325360494,1714750261025,-515.52,0.00029211,2]
[325360495,1714750261034,-628.66,0.00029211,2]
[325360496,1714750261044,-500.0,0.00029211,2]
[325360497,1714750261054,-670.49,0.00029211,2]
[325360498,1714750261064,-1503.33,0.00029211,2]
[325360499,1714750261073,-500.0,0.00029211,2]
[325360500,1714750261082,-500.0,0.00029211,2]
[325360501,1714750261091,-500.0,0.00029211,2]
[325360502,1714750261101,-591.98,0.00029211,2]
[325360503,1714750261110,-4039.733026,0.00029211,2]
[325360504,1714750261120,-950.39,0.00029211,2]
[325360505,1714750261129,-4039.733026,0.00029211,2]
[325360506,1714750261139,-500.0,0.00029211,2]
[325360507,1714750261148,-500.0,0.00029211,2]
[325360508,1714750261158,-500.0,0.00029211,2]
[325360509,1714750261167,-500.0,0.00029211,2]
[325360510,1714750261177,-500.0,0.00029211,2]
[325360511,1714750261187,-516.0,0.00029211,2]
[325360512,1714750261198,-606.44,0.00029211,2]
[325360513,1714750261207,-606.21,0.00029211,2]
[325360514,1714750261217,-500.0,0.00029211,2]
[325360515,1714750261226,-500.0,0.00029211,2]
[325360516,1714750261235,-500.0,0.00029211,2]
[325360517,1714750261246,-500.0,0.00029211,2]
[325360518,1714750261258,-150.0,0.00029232,2]
[325360519,1714750261269,-552.44,0.00029282,2]
[325360520,1714750261278,-500.0,0.00029282,2]
[325360521,1714750261288,-649.29480245,0.00029315,2]
[325360522,1714750261301,-215.34488593,0.00029315,2]
[325360523,1714750261310,-500.0,0.00029315,2]
[325360524,1714750261320,-754.1915397,0.00029315,2]
[325360525,1714750261329,-500.0,0.00029315,2]
[325360526,1714750261339,-500.0,0.00029315,2]
[325360527,1714750261348,-500.0,0.00029315,2]
[325360528,1714750261358,-500.0,0.00029315,2]
[325360529,1714750261367,-236.0277768,0.00029315,2]
[325360530,1714750261379,-500.0,0.00029315,2]
[325360531,1714750261389,-500.0,0.00029315,2]
[325360532,1714750261398,-204.0119045,0.00029448,2]
[325360534,1714750261407,-1327.14,0.00029462,2]
[325360536,1714750261416,-9275.45,0.00029462,2]
[325360538,1714750261424,-785.37,0.00029462,2]
[325360540,1714750261434,-500.0,0.00029462,2]
[325360542,1714750261443,-10513.94,0.00029462,2]
[325360543,1714750261452,-976.39,0.00029462,2]
[325360545,1714750261461,-1022.09,0.00029462,2]
[325360547,1714750261471,-2235.82,0.00029462,2]
[325360549,1714750261480,-562.24,0.00029462,2]
[325360551,1714750261490,-601.06,0.00029462,2]
[325360553,1714750261500,-797.94,0.00029462,2]
[325360556,1714750261510,-500.0,0.00029462,2]
[325360557,1714750261520,-6216.02,0.00029462,2]
[325360560,1714750261529,-500.0,0.00029462,2]
[325360562,1714750261539,-500.0,0.00029464,2]
[325360563,1714750261548,-510.42,0.00029464,2]
[325360565,1714750261557,-500.0,0.00029464,2]
[325360567,1714750261567,-500.0,0.00029464,2]
[325360569,1714750261576,-500.0,0.00029464,2]
[325360572,1714750261586,-690.26,0.00029464,2]
[325360574,1714750261596,-500.0,0.00029464,2]
[325360575,1714750261605,-512.63,0.00029464,2]
[325360577,1714750261614,-500.0,0.00029464,2]
[325360579,1714750261623,-500.0,0.00029464,2]
[325360582,1714750261719,-2997.35,0.00029464,2]
[325360583,1714750261729,-1578.22,0.00029464,2]
[325360584,1714750261739,-721.96,0.00029464,2]
[325360586,1714750261749,-500.0,0.00029464,2]
[325360588,1714750261759,-1485.57,0.00029464,2]
[325360590,1714750261770,-4953.28,0.00029464,2]
[325360592,1714750261779,-1549.55,0.00029464,2]
[325360594,1714750261789,-6371.53,0.00029464,2]
[325360596,1714750261799,-2101.63,0.00029464,2]
[325360598,1714750261808,-257.51690851,0.00029464,2]
[325360600,1714750261817,-500.0,0.00029464,2]
[325360602,1714750261826,-500.0,0.00029464,2]
[325360604,1714750261836,-7429.7,0.00029464,2]
[325360606,1714750261845,-2456.55,0.00029464,2]
[325360609,1714750261855,-500.0,0.00029464,2]
[325360610,1714750261864,-633.36,0.00029464,2]
[325360613,1714750261874,-500.0,0.00029464,2]
[325360615,1714750261883,-1023.54,0.00029464,2]
[325360617,1714750261892,-1355.33,0.00029464,2]
[325360619,1714750261902,-1128.19,0.00029464,2]
[325360621,1714750261911,-1213.87,0.00029464,2]
[325360622,1714750261920,-500.0,0.00029464,2]
[325360625,1714750261929,-500.0,0.00029464,2]
[325360627,1714750261938,-862.53,0.00029465,2]
[325360629,1714750261947,-500.0,0.00029465,2]
[325360631,1714750261956,-500.0,0.00029465,2]
[325360633,1714750261965,-837.87,0.00029465,2]
[325360635,1714750261975,-500.0,0.00029465,2]
[325360637,1714750261984,-390.237657,0.00029465,2]
[325360639,1714750261994,-500.0,0.00029465,2]
[325360641,1714750262004,-500.0,0.00029465,2]
[325360643,1714750262013,-500.0,0.00029465,2]
[325360645,1714750262023,-1489.61,0.00029465,2]
[325360647,1714750262032,-2633.47,0.00029465,2]
[325360649,1714750262041,-830.4,0.00029465,2]
[325360651,1714750262050,-500.0,0.00029465,2]
[325360653,1714750262059,-543.71840043,0.00029465,2]
[325360655,1714750262069,-1598.34,0.00029465,2]
[325360657,1714750262078,-500.0,0.00029465,2]
[325360659,1714750262088,-500.0,0.00029465,2]
[325360661,1714750262097,-500.0,0.00029465,2]
[325360663,1714750262107,-1060.1,0.00029465,2]
[325360665,1714750262116,-523.46,0.00029465,2]
[325360667,1714750262127,-500.0,0.00029465,2]
[325360669,1714750262136,-1068.09,0.00029465,2]
[325360671,1714750262145,-559.43,0.00029465,2]
[325360673,1714750262155,-513.59,0.00029465,2]
[325360675,1714750262164,-500.0,0.00029465,2]
[325360677,1714750262174,-500.0,0.00029465,2]
[325360679,1714750262183,-632.98,0.00029465,2]
[325360681,1714750262193,-637.02,0.00029465,2]
[325360683,1714750262203,-500.0,0.00029465,2]
[325360686,1714750262212,-1615.03,0.00029465,2]
[325360687,1714750262222,-1312.06,0.00029465,2]
[325360689,1714750262231,-500.0,0.00029465,2]
[325360690,1714750262241,-1845.44,0.00029465,2]
[325360691,1714750262251,-500.0,0.00029465,2]
[325360692,1714750262260,-751.0,0.00029465,2]
[325360693,1714750262270,-500.0,0.00029465,2]
[325360694,1714750262280,-1150.87,0.00029465,2]
[325360695,1714750262294,-664.82,0.00029465,2]
[325360696,1714750262304,-1800.91,0.00029465,2]
[325360698,1714750262313,-500.0,0.00029465,2]
[325360700,1714750262322,-2580.51,0.00029465,2]
[325360702,1714750262332,-500.0,0.00029465,2]
[325360704,1714750262341,-706.9,0.00029465,2]
[325360706,1714750262350,-500.0,0.00029465,2]
[325360708,1714750262359,-500.0,0.00029465,2]
[325360709,1714750262369,-3537.83,0.00029465,2]
[325360711,1714750262379,-3279.51,0.00029465,2]
[325360713,1714750262389,-674.24,0.00029465,2]
[325360715,1714750262399,-500.0,0.00029465,2]
[325360717,1714750262408,-500.0,0.00029465,2]
[325360719,1714750262417,-519.22,0.00029465,2]
[325360721,1714750262426,-1543.8,0.00029465,2]
[325360723,1714750262436,-500.0,0.00029465,2]
[325360725,1714750262445,-500.0,0.00029465,2]
[325360727,1714750262455,-1504.09,0.00029465,2]
[325360729,1714750262464,-576.71,0.00029465,2]
[325360731,1714750262473,-500.0,0.00029465,2]
[325360733,1714750262483,-500.0,0.00029465,2]
[325360735,1714750262494,-500.0,0.00029465,2]
[325360737,1714750262504,-1175.46,0.00029465,2]
[325360739,1714750262514,-590.04,0.00029465,2]
[325360741,1714750262524,-1444.11,0.00029465,2]
[325360743,1714750262534,-511.3765291,0.00029465,2]
[325360745,1714750262543,-758.49,0.00029465,2]
[325360747,1714750262553,-500.0,0.00029465,2]
[325360749,1714750262563,-500.0,0.00029465,2]
[325360751,1714750262572,-3880.25,0.00029465,2]
[325360753,1714750262581,-537.87,0.00029465,2]
[325360755,1714750262591,-486.58697364,0.00029465,2]
[325360757,1714750262600,-500.0,0.00029465,2]
[325360759,1714750262610,-500.0,0.00029465,2]
[325360761,1714750262619,-500.58,0.00029465,2]
[325360763,1714750262628,-5701.04,0.00029484,2]
[325360765,1714750262637,-7031.28,0.00029484,2]
[325360767,1714750262646,-500.0,0.00029484,2]
[325360769,1714750262655,-970.68,0.00029484,2]
[325360771,1714750262664,-500.0,0.00029484,2]
[325360773,1714750262673,-500.0,0.00029484,2]
[325360775,1714750262682,-1931.76,0.00029484,2]
[325360777,1714750262692,-24955.58794418,0.00029484,2]
[325360827,1714750263554,23743.1968247,0.00020913,2]
[325360828,1714750263671,291.71004775,0.00020913,2]
[325360829,1714750263696,154.64431807,0.00020913,2]
[325360830,1714750263763,20686.90624341,0.00020912,2]
[325360831,1714750263784,39924.30507993,0.00020912,2]
[325360832,1714750264366,847.31053371,0.00020912,30]
[325360833,1714750264738,768.23608796,0.00018819,2]
[325360834,1714750313366,488.51147253,0.0002,2]
[325360840,1714750347428,550.32334782,9.999e-05,2]
[325360841,1714750353893,473.19998042,9.999e-05,2]
[325360842,1714750398052,1078.72294783,9.999e-05,2]
[325360843,1714750452793,527.13951773,9.999e-05,2]
[325360844,1714750541765,19202.35106111,9.999e-05,2]
[325360845,1714750565140,206.84821755,0.00018983,2]
[325360846,1714750567687,9497.48329581,9.999e-05,2]
[325360847,1714750592726,421.73368282,0.00019178,2]
[325360848,1714750592756,500.0,0.00019178,2]
[325360849,1714750592797,407.35196265,0.00019178,2]
[325360850,1714750592826,500.0,0.00019178,2]
[325360851,1714750592856,500.0,0.00019178,2]
[325360852,1714750592887,500.0,0.00019178,2]
[325360853,1714750592940,243.99072243,0.00019178,2]
[325360854,1714750592974,500.0,0.00019178,2]
[325360855,1714750593012,500.0,0.00019178,2]
[325360856,1714750593044,500.0,0.00019178,2]
[325360857,1714750593087,353.69326425,0.00019178,2]
[325360858,1714750593122,500.0,0.00019178,2]
[325360859,1714750593167,500.0,0.00019178,2]
[325360860,1714750593198,290.1539052,0.00019178,2]
[325360861,1714750593244,500.0,0.00019178,2]
[325360862,1714750593274,500.0,0.00019178,2]
[325360863,1714750593313,500.0,0.00019178,2]
[325360864,1714750593363,500.0,0.00019178,2]
[325360865,1714750593535,363.42850755,0.00019178,2]
[325360866,1714750593578,500.0,0.00019178,2]
[325360867,1714750593825,500.0,0.00019178,2]
[325360868,1714750593863,500.0,0.00019178,2]
[325360869,1714750594584,500.0,0.00019178,2]
[325360870,1714750594636,225.07557852,0.00019178,2]
[325360871,1714750594669,500.0,0.00019178,2]
[325360872,1714750595122,500.0,0.00019178,2]
[325360873,1714750611830,500.0,0.00019178,2]
[325360874,1714750611861,500.0,0.00019178,2]
[325360875,1714750611897,500.0,0.00019178,2]
[325360876,1714750611931,500.0,0.00019178,2]
[325360877,1714750612131,500.0,0.00019178,2]
[325360878,1714750612162,500.0,0.00019178,2]
[325360879,1714750612197,500.0,0.00019178,2]
[325360880,1714750612233,500.0,0.00019178,2]
[325360881,1714750612265,500.0,0.00019178,2]
[325360882,1714750612317,500.0,0.00019178,2]
[325360883,1714750612372,500.0,0.00019178,2]
[325360884,1714750612414,500.0,0.00019178,2]
[325360885,1714750612447,500.0,0.00019178,2]
[325360886,1714750612482,500.0,0.00019178,2]
[325360887,1714750612519,500.0,0.00019178,2]
[325360888,1714750612556,427.06520065,0.00019178,2]
[325360889,1714750674348,160.871423,0.00019178,2]
[325360890,1714750763293,1492.55196417,9.999e-05,2]
[325360894,1714750836345,412.39463435,9.999e-05,2]
[325360895,1714750846041,475.45246949,9.999e-05,2]
[325360896,1714750854463,12501.3385208,0.00019258,2]
[325360898,1714750964928,1347.03974677,9.999e-05,2]
[325360899,1714750978241,1313.76683958,0.0001,2]
[325360900,1714750989541,158.04036321,9.999e-05,2]
[325360901,1714751016529,522.35614016,9.999e-05,2]
[325360902,1714751022395,513.70463444,9.999e-05,2]
[325360905,1714751150163,1078.72294783,9.999e-05,2]
[325360906,1714751192896,500.0,0.00019178,2]
[325360907,1714751192938,500.0,0.00019178,2]
[325360908,1714751192985,500.0,0.00019178,2]
[325360909,1714751193015,406.10797927,0.00019178,2]
[325360910,1714751193051,637.04617156,0.00019178,2]
[325360911,1714751193100,159.02855227,0.00019178,2]
[325360912,1714751193912,500.0,0.00019178,2]
[325360913,1714751193983,380.78502229,0.00019178,2]
[325360914,1714751200108,318.85316675,0.00019178,2]
[325360915,1714751223142,150.0,0.000189,2]
[325360916,1714751253783,154.65974855,9.999e-05,2]
[325360917,1714751363106,-3052.77811249,0.00020119,2]
[325360918,1714751363126,-7877.46126103,0.00020119,2]
[325360919,1714751363146,-2627.83453245,0.0002012,2]
[325360920,1714751363166,-5812.70291801,0.0002012,2]
[325360921,1714751363187,-1078.72294783,0.00020121,2]
[325360922,1714751363213,-1347.03974677,0.00020122,2]
[325360923,1714751363234,-154.65974855,0.00020122,2]
[325360924,1714751363256,-2102.35981509,0.00020122,2]
[325360925,1714751363276,-232.04563583,0.0002013,2]
[325360926,1714751363297,-781.37717524,0.00020133,2]
[325360927,1714751363318,-200.18144808,0.00020228,2]
[325360928,1714751363338,-154.82968734,0.00020228,2]
[325360929,1714751363357,-41223.12553282,0.00020229,2]
[325360930,1714751363377,-19941.55062154,0.0002023,2]
[325360931,1714751367098,-13881.71380083,0.0002023,2]
[325360932,1714751367119,-16279.23576001,0.00020272,2]
[325360933,1714751367140,-167.79981968,0.00020286,2]
[325360934,1714751367160,-232.04563581,0.00020472,2]
[325360935,1714751367181,-447.34773707,0.00020812,2]
[325360936,1714751367202,-232.04563581,0.00020813,2]
[325360937,1714751367225,-821.4,0.000209,3]
[325360938,1714751367246,-487.60404824,0.00020908,2]
[325360939,1714751367266,-5456.34094215,0.00020908,2]
[325360940,1714751367287,-255.01434011,0.00020908,2]
[325360941,1714751367307,-186.32922869,0.00020908,2]
[325360942,1714751367326,-158.41295254,0.00020908,2]
[325360943,1714751367346,-213.76106557,0.00020908,2]
[325360944,1714751367366,-325.76259818,0.00020908,2]
[325360945,1714751367385,-549.94499629,0.00020908,2]
[325360946,1714751367405,-594.7318816,0.00020908,2]
[325360947,1714751367425,-409.45081971,0.00020908,2]
[325360948,1714751367446,-155.10245493,0.00020908,2]
[325360949,1714751367468,-155.08092952,0.00020908,2]
[325360950,1714751367487,-526.59629684,0.00020908,2]
[325360951,1714751367507,-565.31689857,0.00020908,2]
[325360952,1714751367528,-193.87010555,0.00020909,2]
[325360953,1714751367548,-468.88112624,0.0002091,2]
[325360954,1714751367568,-1178.90795644,0.0002091,2]
[325360955,1714751367587,-1891.97802376,0.0002091,2]
[325360956,1714751367611,-272.87483722,0.0002091,2]
[325360957,1714751367631,-164.02922901,0.0002091,2]
[325360958,1714751367654,-771.73283885,0.0002091,2]
[325360959,1714751367673,-267.92411075,0.0002091,2]
[325360960,1714751367695,-154.84515485,0.0002091,2]
[325360961,1714751367715,-314.85282276,0.0002091,2]
[325360962,1714751367734,-939.61631274,0.0002091,2]
[325360963,1714751367754,-603.94471779,0.0002091,2]
[325360964,1714751367774,-981.8517699,0.0002091,2]
[325360965,1714751367794,-1678.22103741,0.0002091,2]
[325360966,1714751367814,-683.41665733,0.0002091,2]
[325360967,1714751367833,-891.03583559,0.0002091,2]
[325360968,1714751367853,-362.38148801,0.0002091,2]
[325360969,1714751367873,-272.88032191,0.0002091,2]
[325360970,1714751367893,-312.97578303,0.0002091,2]
[325360971,1714751367912,-700.70596004,0.0002091,2]
[325360972,1714751367932,-154.82968734,0.0002091,2]
[325360973,1714751367952,-1491.26866614,0.0002091,2]
[325360974,1714751367974,-525.52654479,0.0002091,2]
[325360975,1714751367994,-475.32221455,0.0002091,2]
[325360976,1714751368014,-815.6627569,0.0002091,2]
[325360977,1714751368035,-583.66545878,0.0002091,2]
[325360978,1714751368055,-1334.52677036,0.0002091,2]
[325360979,1714751368074,-157.99223186,0.0002091,2]
[325360980,1714751368094,-522.20590757,0.0002091,2]
[325360981,1714751368114,-513.24344788,0.0002091,2]
[325360982,1714751368262,-446.81393849,0.0002091,2]